[Event "Titled Tuesday Blitz July 25 Early 2023"]
[White "Jaskolka, Tomasz"]
[Black "Tsaruk, Maksim"]
[WhiteFideId "1170791"]
[BlackFideId "13511173"]
[WhiteElo "2517"]
[BlackElo "2787"]
[Result "0-1"]
[Round "2"]
[TimeControl "180+2"]
[Date "2023.07.25"]
[WhiteClock "0:00:13"]
[BlackClock "0:00:32"]
[Board "69"]

1. e4 {[%clk 0:03:00]}  e5 {[%clk 0:02:54]} 2. Nf3 {[%clk 0:03:00]}  Nc6 {[%clk 0:02:54]} 3. Bc4 {[%clk 0:03:01]}  Nf6 {[%clk 0:02:55]} 4. Ng5 {[%clk 0:03:01]}  d5 {[%clk 0:02:55]} 5. exd5 {[%clk 0:03:01]}  Na5 {[%clk 0:02:55]} 6. Bb5+ {[%clk 0:03:02]}  c6 {[%clk 0:02:56]} 7. dxc6 {[%clk 0:03:03]}  bxc6 {[%clk 0:02:57]} 8. Bd3 {[%clk 0:03:03]}  Ng4 {[%clk 0:02:52]} 9. Nf3 {[%clk 0:02:51]}  f5 {[%clk 0:02:50]} 10. h3 {[%clk 0:02:52]}  e4 {[%clk 0:02:51]} 11. hxg4 {[%clk 0:02:47]}  exd3 {[%clk 0:02:51]} 12. cxd3 {[%clk 0:02:36]}  fxg4 {[%clk 0:02:38]} 13. Ne5 {[%clk 0:02:26]}  Qd5 {[%clk 0:02:26]} 14. Qe2 {[%clk 0:02:09]}  Qxg2 {[%clk 0:01:49]} 15. Nxc6+ {[%clk 0:01:30]}  Kf7 {[%clk 0:01:48]} 16. Ne5+ {[%clk 0:01:29]}  Kg8 {[%clk 0:01:48]} 17. Qe4 {[%clk 0:01:06]}  Bb7 {[%clk 0:01:47]} 18. Qxg2 {[%clk 0:01:05]}  Bxg2 {[%clk 0:01:48]} 19. Rg1 {[%clk 0:01:06]}  Re8 {[%clk 0:01:43]} 20. d4 {[%clk 0:00:44]}  Bf3 {[%clk 0:01:43]} 21. Kf1 {[%clk 0:00:41]}  Nc6 {[%clk 0:01:16]} 22. Nxg4 {[%clk 0:00:41]}  Be2+ {[%clk 0:01:11]} 23. Kg2 {[%clk 0:00:35]}  Bxg4 {[%clk 0:01:11]} 24. d5 {[%clk 0:00:35]}  Nd4 {[%clk 0:01:11]} 25. Nc3 {[%clk 0:00:36]}  Bf3+ {[%clk 0:01:11]} 26. Kh3 {[%clk 0:00:36]}  Bd6 {[%clk 0:01:10]} 27. d3 {[%clk 0:00:36]}  Re5 {[%clk 0:01:05]} 28. Rg5 {[%clk 0:00:25]}  Re1 {[%clk 0:01:06]} 29. Bf4 {[%clk 0:00:11]}  Rxa1 {[%clk 0:01:05]} 30. Bxd6 {[%clk 0:00:11]}  Rh1+ {[%clk 0:01:03]} 31. Kg3 {[%clk 0:00:11]}  Rg1+ {[%clk 0:01:02]} 32. Kf4 {[%clk 0:00:12]}  Rxg5 {[%clk 0:00:58]} 33. Kxg5 {[%clk 0:00:13]}  h5 {[%clk 0:00:55]} 34. Be5 {[%clk 0:00:13]}  Ne2 {[%clk 0:00:53]} 35. d6 {[%clk 0:00:12]}  Nxc3 {[%clk 0:00:52]} 36. bxc3 {[%clk 0:00:12]}  Kf7 {[%clk 0:00:51]} 37. c4 {[%clk 0:00:12]}  h4 {[%clk 0:00:49]} 38. d4 {[%clk 0:00:12]}  h3 {[%clk 0:00:49]} 39. Bh2 {[%clk 0:00:12]}  Ke6 {[%clk 0:00:40]} 40. d5+ {[%clk 0:00:12]}  Kd7 {[%clk 0:00:40]} 41. Kf4 {[%clk 0:00:12]}  Bg2 {[%clk 0:00:40]} 42. Ke5 {[%clk 0:00:12]}  Rh5+ {[%clk 0:00:40]} 43. Kd4 {[%clk 0:00:12]}  Rf5 {[%clk 0:00:41]} 44. Bg3 {[%clk 0:00:11]}  g5 {[%clk 0:00:39]} 45. a4 {[%clk 0:00:11]}  a6 {[%clk 0:00:39]} 46. a5 {[%clk 0:00:12]}  g4 {[%clk 0:00:39]} 47. Kc5 {[%clk 0:00:12]}  Rxf2 {[%clk 0:00:38]} 48. Kd4 {[%clk 0:00:12]}  Rc2 {[%clk 0:00:32]} 49. c5 {[%clk 0:00:13]}  Rd2+ {[%clk 0:00:32]} 0-1


[Site "https://www.chess.com"]

[Event "Titled Tuesday Blitz July 25 Early 2023"]
[White "Tristan, Leonardo"]
[Black "Tokman, Ariel"]
[WhiteFideId "113816"]
[BlackFideId "117420"]
[WhiteElo "2781"]
[BlackElo "2516"]
[Result "0-1"]
[Round "2"]
[TimeControl "180+2"]
[Date "2023.07.25"]
[WhiteClock "0:00:06"]
[BlackClock "0:00:09"]
[Board "71"]

1. d4 {[%clk 0:03:00]}  d5 {[%clk 0:02:55]} 2. Nf3 {[%clk 0:03:00]}  c6 {[%clk 0:02:55]} 3. Bf4 {[%clk 0:03:00]}  Nf6 {[%clk 0:02:55]} 4. e3 {[%clk 0:03:00]}  Bg4 {[%clk 0:02:51]} 5. c4 {[%clk 0:03:00]}  e6 {[%clk 0:02:50]} 6. Nc3 {[%clk 0:03:00]}  Nbd7 {[%clk 0:02:25]} 7. Qb3 {[%clk 0:03:00]}  Qb6 {[%clk 0:02:22]} 8. c5 {[%clk 0:03:00]}  Qxb3 {[%clk 0:02:20]} 9. axb3 {[%clk 0:03:01]}  a6 {[%clk 0:02:19]} 10. Nd2 {[%clk 0:03:00]}  Be7 {[%clk 0:02:07]} 11. h3 {[%clk 0:02:59]}  Bf5 {[%clk 0:02:05]} 12. b4 {[%clk 0:03:00]}  O-O {[%clk 0:02:03]} 13. Nb3 {[%clk 0:02:58]}  Bd8 {[%clk 0:01:58]} 14. Na5 {[%clk 0:02:58]}  Bxa5 {[%clk 0:01:57]} 15. bxa5 {[%clk 0:02:59]}  Rfc8 {[%clk 0:01:17]} 16. g4 {[%clk 0:02:57]}  Bg6 {[%clk 0:01:17]} 17. Ra4 {[%clk 0:02:41]}  Ne8 {[%clk 0:01:16]} 18. Rb4 {[%clk 0:02:40]}  Ra7 {[%clk 0:01:16]} 19. Na4 {[%clk 0:02:40]}  Bc2 {[%clk 0:01:05]} 20. b3 {[%clk 0:02:28]}  f6 {[%clk 0:00:56]} 21. Be2 {[%clk 0:02:08]}  e5 {[%clk 0:00:52]} 22. Bg3 {[%clk 0:02:08]}  Be4 {[%clk 0:00:44]} 23. f3 {[%clk 0:02:08]}  Bg6 {[%clk 0:00:44]} 24. Nb6 {[%clk 0:02:01]}  Nxb6 {[%clk 0:00:41]} 25. axb6 {[%clk 0:02:02]}  Raa8 {[%clk 0:00:41]} 26. dxe5 {[%clk 0:02:03]}  fxe5 {[%clk 0:00:39]} 27. Bxe5 {[%clk 0:02:03]}  Nf6 {[%clk 0:00:40]} 28. Kd2 {[%clk 0:01:57]}  Re8 {[%clk 0:00:39]} 29. Bd4 {[%clk 0:01:35]}  Nd7 {[%clk 0:00:38]} 30. Ra4 {[%clk 0:01:35]}  Re6 {[%clk 0:00:36]} 31. h4 {[%clk 0:01:32]}  Rae8 {[%clk 0:00:36]} 32. h5 {[%clk 0:01:31]}  Bf7 {[%clk 0:00:37]} 33. Bd3 {[%clk 0:01:29]}  Ne5 {[%clk 0:00:36]} 34. Be2 {[%clk 0:01:22]}  R6e7 {[%clk 0:00:35]} 35. f4 {[%clk 0:01:11]}  Nd7 {[%clk 0:00:35]} 36. g5 {[%clk 0:01:06]}  Be6 {[%clk 0:00:35]} 37. h6 {[%clk 0:00:36]}  g6 {[%clk 0:00:35]} 38. Rha1 {[%clk 0:00:33]}  Nb8 {[%clk 0:00:29]} 39. b4 {[%clk 0:00:27]}  Bc8 {[%clk 0:00:28]} 40. R4a3 {[%clk 0:00:25]}  Rf7 {[%clk 0:00:28]} 41. Be5 {[%clk 0:00:20]}  Nd7 {[%clk 0:00:28]} 42. Bd6 {[%clk 0:00:21]}  Nf8 {[%clk 0:00:25]} 43. Bf3 {[%clk 0:00:14]}  Be6 {[%clk 0:00:21]} 44. b5 {[%clk 0:00:12]}  cxb5 {[%clk 0:00:21]} 45. Rd3 {[%clk 0:00:12]}  Rd7 {[%clk 0:00:19]} 46. Bxd5 {[%clk 0:00:12]}  Bxd5 {[%clk 0:00:20]} 47. Rxd5 {[%clk 0:00:13]}  Ne6 {[%clk 0:00:21]} 48. Rc1 {[%clk 0:00:08]}  Nd8 {[%clk 0:00:20]} 49. e4 {[%clk 0:00:08]}  Rxe4 {[%clk 0:00:19]} 50. Kd3 {[%clk 0:00:09]}  Re6 {[%clk 0:00:19]} 51. Kd4 {[%clk 0:00:06]}  Nc6+ {[%clk 0:00:17]} 52. Kd3 {[%clk 0:00:05]}  Kf7 {[%clk 0:00:18]} 53. Kc3 {[%clk 0:00:04]}  Re4 {[%clk 0:00:18]} 54. f5 {[%clk 0:00:04]}  gxf5 {[%clk 0:00:11]} 55. Rxf5+ {[%clk 0:00:05]}  Kg6 {[%clk 0:00:12]} 56. Rcf1 {[%clk 0:00:04]}  Rc4+ {[%clk 0:00:11]} 57. Kb2 {[%clk 0:00:04]}  Nd4 {[%clk 0:00:11]} 58. Rd5 {[%clk 0:00:03]}  Rf7 {[%clk 0:00:10]} 59. Rxf7 {[%clk 0:00:03]}  Kxf7 {[%clk 0:00:10]} 60. Be5 {[%clk 0:00:03]}  Nc6 {[%clk 0:00:10]} 61. Rd7+ {[%clk 0:00:03]}  Ke6 {[%clk 0:00:09]} 62. Rxh7 {[%clk 0:00:02]}  Rxc5 {[%clk 0:00:07]} 63. Bc7 {[%clk 0:00:02]}  Rxg5 {[%clk 0:00:07]} 64. Rg7 {[%clk 0:00:02]}  Rxg7 {[%clk 0:00:06]} 65. hxg7 {[%clk 0:00:02]}  Kf7 {[%clk 0:00:06]} 66. Kc3 {[%clk 0:00:02]}  Kxg7 {[%clk 0:00:07]} 67. Kd3 {[%clk 0:00:03]}  Kf7 {[%clk 0:00:07]} 68. Ke4 {[%clk 0:00:04]}  Ke6 {[%clk 0:00:08]} 69. Bf4 {[%clk 0:00:03]}  Ne7 {[%clk 0:00:07]} 70. Kd4 {[%clk 0:00:03]}  Nc6+ {[%clk 0:00:05]} 71. Kc5 {[%clk 0:00:03]}  b4 {[%clk 0:00:05]} 72. Bd2 {[%clk 0:00:03]}  Ke5 {[%clk 0:00:04]} 73. Bc1 {[%clk 0:00:01]}  Ke4 {[%clk 0:00:04]} 74. Kd6 {[%clk 0:00:01]}  Kd4 {[%clk 0:00:04]} 75. Kc7 {[%clk 0:00:01]}  Na5 {[%clk 0:00:04]} 76. Bd2 {[%clk 0:00:01]}  Kc4 {[%clk 0:00:05]} 77. Be1 {[%clk 0:00:02]}  Kb5 {[%clk 0:00:05]} 78. Bd2 {[%clk 0:00:02]}  b3 {[%clk 0:00:06]} 79. Bxa5 {[%clk 0:00:02]}  Kxa5 {[%clk 0:00:06]} 80. Kxb7 {[%clk 0:00:03]}  b2 {[%clk 0:00:06]} 81. Ka7 {[%clk 0:00:03]}  b1=Q {[%clk 0:00:06]} 82. b7 {[%clk 0:00:04]}  Qxb7+ {[%clk 0:00:07]} 83. Kxb7 {[%clk 0:00:05]}  Kb5 {[%clk 0:00:07]} 84. Kc7 {[%clk 0:00:05]}  a5 {[%clk 0:00:08]} 85. Kd6 {[%clk 0:00:06]}  Kb4 {[%clk 0:00:09]} 0-1


[Site "https://www.chess.com"]

[Event "Titled Tuesday Blitz July 25 Early 2023"]
[White "Lehtosaari, Mauri"]
[Black "Vakhlamov, Igor L."]
[WhiteFideId "501999"]
[BlackFideId "24126748"]
[WhiteElo "2483"]
[BlackElo "2772"]
[Result "1/2-1/2"]
[Round "2"]
[TimeControl "180+2"]
[Date "2023.07.25"]
[WhiteClock "0:00:10"]
[BlackClock "0:00:12"]
[Board "76"]

1. d4 {[%clk 0:02:55]}  d5 {[%clk 0:02:59]} 2. Nf3 {[%clk 0:02:55]}  Nf6 {[%clk 0:02:59]} 3. Bg5 {[%clk 0:02:53]}  Ne4 {[%clk 0:02:58]} 4. Bf4 {[%clk 0:02:54]}  Bf5 {[%clk 0:02:58]} 5. e3 {[%clk 0:02:52]}  e6 {[%clk 0:02:58]} 6. Nbd2 {[%clk 0:02:48]}  Bd6 {[%clk 0:02:57]} 7. Bxd6 {[%clk 0:02:48]}  Qxd6 {[%clk 0:02:58]} 8. c3 {[%clk 0:02:43]}  O-O {[%clk 0:02:58]} 9. Nxe4 {[%clk 0:02:40]}  Bxe4 {[%clk 0:02:57]} 10. Bd3 {[%clk 0:02:39]}  Bxd3 {[%clk 0:02:55]} 11. Qxd3 {[%clk 0:02:40]}  c5 {[%clk 0:02:55]} 12. Ne5 {[%clk 0:02:38]}  Nc6 {[%clk 0:02:53]} 13. f4 {[%clk 0:02:31]}  f6 {[%clk 0:02:52]} 14. Nxc6 {[%clk 0:02:30]}  bxc6 {[%clk 0:02:52]} 15. O-O {[%clk 0:02:30]}  c4 {[%clk 0:02:43]} 16. Qc2 {[%clk 0:02:26]}  c5 {[%clk 0:02:41]} 17. Rae1 {[%clk 0:02:03]}  f5 {[%clk 0:02:34]} 18. h3 {[%clk 0:01:59]}  Rab8 {[%clk 0:02:31]} 19. Re2 {[%clk 0:01:50]}  Rb7 {[%clk 0:02:29]} 20. Qa4 {[%clk 0:01:47]}  Rfb8 {[%clk 0:02:24]} 21. Qa3 {[%clk 0:01:41]}  Rc7 {[%clk 0:02:19]} 22. Rd1 {[%clk 0:01:35]}  Rb6 {[%clk 0:02:14]} 23. dxc5 {[%clk 0:01:21]}  Qxc5 {[%clk 0:02:14]} 24. Qxc5 {[%clk 0:01:21]}  Rxc5 {[%clk 0:02:15]} 25. Kf1 {[%clk 0:01:18]}  Kf7 {[%clk 0:02:15]} 26. Ke1 {[%clk 0:01:18]}  h6 {[%clk 0:02:15]} 27. Ra1 {[%clk 0:01:15]}  Rcb5 {[%clk 0:02:12]} 28. Rb1 {[%clk 0:01:14]}  Kf6 {[%clk 0:02:12]} 29. Kd1 {[%clk 0:01:10]}  g5 {[%clk 0:02:13]} 30. g3 {[%clk 0:01:08]}  Rb8 {[%clk 0:02:13]} 31. Kc2 {[%clk 0:01:08]}  Rg8 {[%clk 0:02:14]} 32. Rbe1 {[%clk 0:01:03]}  Rb7 {[%clk 0:02:08]} 33. b3 {[%clk 0:00:56]}  Rc8 {[%clk 0:01:33]} 34. Rd1 {[%clk 0:00:44]}  a5 {[%clk 0:01:30]} 35. g4 {[%clk 0:00:40]}  Rbc7 {[%clk 0:01:25]} 36. Rb1 {[%clk 0:00:32]}  cxb3+ {[%clk 0:01:22]} 37. Rxb3 {[%clk 0:00:31]}  a4 {[%clk 0:01:22]} 38. Ra3 {[%clk 0:00:31]}  Rc4 {[%clk 0:01:23]} 39. fxg5+ {[%clk 0:00:30]}  hxg5 {[%clk 0:01:23]} 40. gxf5 {[%clk 0:00:29]}  Kxf5 {[%clk 0:01:23]} 41. Rf2+ {[%clk 0:00:28]}  Ke4 {[%clk 0:01:21]} 42. Rg2 {[%clk 0:00:29]}  Kxe3 {[%clk 0:01:15]} 43. Rxg5 {[%clk 0:00:27]}  d4 {[%clk 0:01:16]} 44. Re5+ {[%clk 0:00:25]}  Kf4 {[%clk 0:01:11]} 45. Rxe6 {[%clk 0:00:25]}  Rxc3+ {[%clk 0:01:09]} 46. Rxc3 {[%clk 0:00:26]}  Rxc3+ {[%clk 0:01:10]} 47. Kd2 {[%clk 0:00:23]}  Rxh3 {[%clk 0:01:10]} 48. Re8 {[%clk 0:00:13]}  Ra3 {[%clk 0:01:09]} 49. Re7 {[%clk 0:00:14]}  Kf5 {[%clk 0:00:58]} 50. Re8 {[%clk 0:00:14]}  Kf4 {[%clk 0:00:51]} 51. Re7 {[%clk 0:00:14]}  Kf3 {[%clk 0:00:47]} 52. Re8 {[%clk 0:00:14]}  Kg4 {[%clk 0:00:19]} 53. Re7 {[%clk 0:00:14]}  Kf5 {[%clk 0:00:18]} 54. Re8 {[%clk 0:00:14]}  Rg3 {[%clk 0:00:13]} 55. Re7 {[%clk 0:00:09]}  a3 {[%clk 0:00:13]} 56. Re8 {[%clk 0:00:08]}  Kf4 {[%clk 0:00:13]} 57. Re7 {[%clk 0:00:08]}  Rh3 {[%clk 0:00:05]} 58. Re8 {[%clk 0:00:08]}  Rg3 {[%clk 0:00:03]} 59. Re7 {[%clk 0:00:08]}  Rg2+ {[%clk 0:00:04]} 60. Kd3 {[%clk 0:00:08]}  Rxa2 {[%clk 0:00:05]} 61. Kxd4 {[%clk 0:00:07]}  Rh2 {[%clk 0:00:03]} 62. Ra7 {[%clk 0:00:07]}  a2 {[%clk 0:00:03]} 63. Kc3 {[%clk 0:00:07]}  Ke4 {[%clk 0:00:03]} 64. Kb3 {[%clk 0:00:07]}  Kd4 {[%clk 0:00:03]} 65. Rxa2 {[%clk 0:00:07]}  Rh3+ {[%clk 0:00:04]} 66. Kb4 {[%clk 0:00:06]}  Rh1 {[%clk 0:00:04]} 67. Rd2+ {[%clk 0:00:06]}  Ke3 {[%clk 0:00:05]} 68. Rd7 {[%clk 0:00:06]}  Rb1+ {[%clk 0:00:05]} 69. Kc3 {[%clk 0:00:06]}  Rc1+ {[%clk 0:00:06]} 70. Kb2 {[%clk 0:00:07]}  Rc8 {[%clk 0:00:07]} 71. Re7+ {[%clk 0:00:06]}  Kd3 {[%clk 0:00:07]} 72. Rd7+ {[%clk 0:00:07]}  Kc4 {[%clk 0:00:08]} 73. Re7 {[%clk 0:00:07]}  Rb8+ {[%clk 0:00:08]} 74. Kc2 {[%clk 0:00:07]}  Rh8 {[%clk 0:00:09]} 75. Re4+ {[%clk 0:00:07]}  Kd5 {[%clk 0:00:10]} 76. Rg4 {[%clk 0:00:08]}  Rh2+ {[%clk 0:00:09]} 77. Kc3 {[%clk 0:00:08]}  Rh3+ {[%clk 0:00:10]} 78. Kc2 {[%clk 0:00:08]}  Kc5 {[%clk 0:00:11]} 79. Rg5+ {[%clk 0:00:08]}  Kd4 {[%clk 0:00:11]} 80. Rg4+ {[%clk 0:00:09]}  Ke3 {[%clk 0:00:12]} 81. Rc4 {[%clk 0:00:09]}  Rh2+ {[%clk 0:00:11]} 82. Kc3 {[%clk 0:00:10]}  Rh1 {[%clk 0:00:12]} 83. Kc2 {[%clk 0:00:10]}  Rh2+ {[%clk 0:00:11]} 84. Kc3 {[%clk 0:00:10]}  Rh3 {[%clk 0:00:11]} 85. Kc2 {[%clk 0:00:10]}  Rh5 {[%clk 0:00:11]} 86. Kc3 {[%clk 0:00:09]}  Rd5 {[%clk 0:00:10]} 87. Kc2 {[%clk 0:00:08]}  Rd2+ {[%clk 0:00:10]} 88. Kc3 {[%clk 0:00:08]}  Rd1 {[%clk 0:00:10]} 89. Kc2 {[%clk 0:00:09]}  Ra1 {[%clk 0:00:10]} 90. Kb2 {[%clk 0:00:09]}  Ra8 {[%clk 0:00:10]} 91. Kc2 {[%clk 0:00:09]}  Rb8 {[%clk 0:00:10]} 92. Kc3 {[%clk 0:00:09]}  Rd8 {[%clk 0:00:10]} 93. Kc2 {[%clk 0:00:09]}  Rd7 {[%clk 0:00:10]} 94. Kc3 {[%clk 0:00:10]}  Rd6 {[%clk 0:00:11]} 95. Kc2 {[%clk 0:00:10]}  Rd4 {[%clk 0:00:11]} 96. Rxd4 {[%clk 0:00:10]}  Kxd4 {[%clk 0:00:12]} 1/2-1/2


[Site "https://www.chess.com"]

[Event "Titled Tuesday Blitz July 25 Early 2023"]
[White "LangesNasenhaar"]
[Black "Rozman, Levy"]
[BlackFideId "2039877"]
[WhiteElo "2477"]
[BlackElo "2765"]
[Result "1-0"]
[Round "2"]
[TimeControl "180+2"]
[Date "2023.07.25"]
[WhiteClock "0:00:11"]
[BlackClock "0:00:01"]
[Board "77"]

1. d4 {[%clk 0:02:58]}  f5 {[%clk 0:02:54]} 2. Nc3 {[%clk 0:02:57]}  Nf6 {[%clk 0:02:55]} 3. Bg5 {[%clk 0:02:56]}  d5 {[%clk 0:02:51]} 4. Bxf6 {[%clk 0:02:55]}  exf6 {[%clk 0:02:52]} 5. e3 {[%clk 0:02:54]}  c6 {[%clk 0:02:51]} 6. Bd3 {[%clk 0:02:52]}  Be6 {[%clk 0:02:51]} 7. Qf3 {[%clk 0:02:52]}  Qd7 {[%clk 0:02:49]} 8. Nge2 {[%clk 0:02:52]}  Na6 {[%clk 0:02:40]} 9. a3 {[%clk 0:02:50]}  Nc7 {[%clk 0:02:38]} 10. Nf4 {[%clk 0:02:50]}  Bf7 {[%clk 0:02:37]} 11. h4 {[%clk 0:02:50]}  g6 {[%clk 0:02:36]} 12. O-O-O {[%clk 0:02:50]}  O-O-O {[%clk 0:02:32]} 13. Kb1 {[%clk 0:02:49]}  Ne6 {[%clk 0:02:29]} 14. Nfe2 {[%clk 0:02:43]}  Bd6 {[%clk 0:02:26]} 15. Nc1 {[%clk 0:02:29]}  Kb8 {[%clk 0:02:21]} 16. Nb3 {[%clk 0:02:28]}  h5 {[%clk 0:02:05]} 17. g3 {[%clk 0:02:25]}  Rde8 {[%clk 0:02:01]} 18. Ne2 {[%clk 0:02:21]}  Ng7 {[%clk 0:01:57]} 19. Nf4 {[%clk 0:02:10]}  g5 {[%clk 0:01:51]} 20. Ng2 {[%clk 0:02:00]}  b6 {[%clk 0:01:50]} 21. Rc1 {[%clk 0:01:54]}  b5 {[%clk 0:01:34]} 22. Qd1 {[%clk 0:01:42]}  Ka8 {[%clk 0:01:31]} 23. Qd2 {[%clk 0:01:40]}  Rb8 {[%clk 0:01:16]} 24. Ne1 {[%clk 0:01:26]}  Bg6 {[%clk 0:01:06]} 25. Nf3 {[%clk 0:01:24]}  Ne6 {[%clk 0:01:02]} 26. Ng1 {[%clk 0:01:15]}  Rb6 {[%clk 0:00:57]} 27. Ne2 {[%clk 0:01:12]}  Rhb8 {[%clk 0:00:55]} 28. c3 {[%clk 0:01:05]}  Qd8 {[%clk 0:00:49]} 29. Qc2 {[%clk 0:01:05]}  Ng7 {[%clk 0:00:47]} 30. Ka2 {[%clk 0:00:44]}  R6b7 {[%clk 0:00:46]} 31. Rcg1 {[%clk 0:00:35]}  a5 {[%clk 0:00:41]} 32. Nc5 {[%clk 0:00:35]}  Ra7 {[%clk 0:00:40]} 33. b4 {[%clk 0:00:33]}  Qc8 {[%clk 0:00:32]} 34. Kb2 {[%clk 0:00:32]}  Bf7 {[%clk 0:00:25]} 35. Ra1 {[%clk 0:00:32]}  Rb6 {[%clk 0:00:17]} 36. Nb3 {[%clk 0:00:31]}  axb4 {[%clk 0:00:13]} 37. axb4 {[%clk 0:00:29]}  Rba6 {[%clk 0:00:11]} 38. Rxa6 {[%clk 0:00:28]}  Rxa6 {[%clk 0:00:12]} 39. Ra1 {[%clk 0:00:24]}  Rxa1 {[%clk 0:00:10]} 40. Kxa1 {[%clk 0:00:24]}  Kb8 {[%clk 0:00:10]} 41. Kb1 {[%clk 0:00:22]}  Kc7 {[%clk 0:00:10]} 42. Qa2 {[%clk 0:00:21]}  Kd7 {[%clk 0:00:08]} 43. Qa7+ {[%clk 0:00:20]}  Qc7 {[%clk 0:00:08]} 44. Qa8 {[%clk 0:00:20]}  Qb8 {[%clk 0:00:06]} 45. Qa6 {[%clk 0:00:17]}  Qc7 {[%clk 0:00:04]} 46. Na5 {[%clk 0:00:15]}  gxh4 {[%clk 0:00:01]} 47. gxh4 {[%clk 0:00:16]}  Be6 {[%clk 0:00:01]} 48. Qa8 {[%clk 0:00:15]}  Ne8 {[%clk 0:00:01]} 49. Kb2 {[%clk 0:00:13]}  Qc8 {[%clk 0:00:01]} 50. Qa7+ {[%clk 0:00:13]}  Nc7 {[%clk 0:00:01]} 51. Nb7 {[%clk 0:00:11]}  Ke7 {[%clk 0:00:01]} 52. Nc5 {[%clk 0:00:11]} 1-0


[Site "https://www.chess.com"]

[Event "Titled Tuesday Blitz July 25 Early 2023"]
[White "Bauman_Guy"]
[Black "Lopez, Henry"]
[BlackFideId "5203830"]
[WhiteElo "2762"]
[BlackElo "2461"]
[Result "1-0"]
[Round "2"]
[TimeControl "180+2"]
[Date "2023.07.25"]
[WhiteClock "0:01:51"]
[BlackClock "0:00:50"]
[Board "79"]

1. e4 {[%clk 0:03:00]}  c5 {[%clk 0:02:59]} 2. Nf3 {[%clk 0:03:00]}  d6 {[%clk 0:02:58]} 3. d4 {[%clk 0:03:00]}  cxd4 {[%clk 0:02:58]} 4. Nxd4 {[%clk 0:03:01]}  Nf6 {[%clk 0:02:58]} 5. Nc3 {[%clk 0:03:01]}  a6 {[%clk 0:02:59]} 6. h3 {[%clk 0:03:01]}  e5 {[%clk 0:02:58]} 7. Nde2 {[%clk 0:03:02]}  h5 {[%clk 0:02:57]} 8. Bg5 {[%clk 0:03:02]}  Be6 {[%clk 0:02:57]} 9. Nc1 {[%clk 0:03:02]}  Nbd7 {[%clk 0:02:58]} 10. Be2 {[%clk 0:03:02]}  Be7 {[%clk 0:02:57]} 11. Nb3 {[%clk 0:03:01]}  Rc8 {[%clk 0:02:56]} 12. O-O {[%clk 0:03:01]}  h4 {[%clk 0:02:45]} 13. Kh1 {[%clk 0:02:59]}  Rxc3 {[%clk 0:02:38]} 14. bxc3 {[%clk 0:02:59]}  Nxe4 {[%clk 0:02:37]} 15. Bxe7 {[%clk 0:03:00]}  Qxe7 {[%clk 0:02:37]} 16. Bf3 {[%clk 0:03:00]}  Ndf6 {[%clk 0:02:32]} 17. Qe1 {[%clk 0:02:58]}  Ng5 {[%clk 0:02:26]} 18. Be2 {[%clk 0:02:58]}  Nd5 {[%clk 0:02:15]} 19. Nd2 {[%clk 0:02:50]}  Nxc3 {[%clk 0:02:05]} 20. Nf3 {[%clk 0:02:49]}  Nce4 {[%clk 0:01:55]} 21. Nxg5 {[%clk 0:02:47]}  Nxg5 {[%clk 0:01:55]} 22. c4 {[%clk 0:02:46]}  Ne4 {[%clk 0:01:47]} 23. Bf3 {[%clk 0:02:43]}  Nc5 {[%clk 0:01:46]} 24. Qd2 {[%clk 0:02:36]}  O-O {[%clk 0:01:38]} 25. Rfd1 {[%clk 0:02:36]}  e4 {[%clk 0:01:27]} 26. Be2 {[%clk 0:02:36]}  Rd8 {[%clk 0:01:26]} 27. Qe3 {[%clk 0:02:36]}  f5 {[%clk 0:01:24]} 28. f4 {[%clk 0:02:24]}  Qf6 {[%clk 0:01:17]} 29. Rd4 {[%clk 0:02:21]}  Bf7 {[%clk 0:01:09]} 30. Rad1 {[%clk 0:02:21]}  g6 {[%clk 0:01:09]} 31. Qd2 {[%clk 0:02:19]}  Nd3 {[%clk 0:01:08]} 32. Qe3 {[%clk 0:02:16]}  Nc5 {[%clk 0:01:03]} 33. Kh2 {[%clk 0:02:14]}  Kg7 {[%clk 0:00:57]} 34. R4d2 {[%clk 0:02:04]}  Kf8 {[%clk 0:00:50]} 35. Rxd6 {[%clk 0:01:50]}  Rxd6 {[%clk 0:00:50]} 36. Qxc5 {[%clk 0:01:51]}  Ke7 {[%clk 0:00:50]} 37. Qc7+ {[%clk 0:01:51]} 1-0


[Site "https://www.chess.com"]

[Event "Titled Tuesday Blitz July 25 Early 2023"]
[White "Tobak, Mikhail"]
[Black "Bryakin, Mikhail"]
[WhiteFideId "14165570"]
[BlackFideId "4165314"]
[WhiteElo "2402"]
[BlackElo "2737"]
[Result "0-1"]
[Round "2"]
[TimeControl "180+2"]
[Date "2023.07.25"]
[WhiteClock "0:00:14"]
[BlackClock "0:01:12"]
[Board "87"]

1. e4 {[%clk 0:03:00]}  Nc6 {[%clk 0:02:56]} 2. Nf3 {[%clk 0:02:59]}  d6 {[%clk 0:02:56]} 3. d4 {[%clk 0:02:57]}  e5 {[%clk 0:02:56]} 4. Bb5 {[%clk 0:02:52]}  exd4 {[%clk 0:02:54]} 5. Nxd4 {[%clk 0:02:52]}  Bd7 {[%clk 0:02:55]} 6. Nc3 {[%clk 0:02:46]}  Nf6 {[%clk 0:02:54]} 7. O-O {[%clk 0:02:45]}  Be7 {[%clk 0:02:53]} 8. Nf5 {[%clk 0:02:37]}  Bxf5 {[%clk 0:02:50]} 9. exf5 {[%clk 0:02:37]}  O-O {[%clk 0:02:50]} 10. Bxc6 {[%clk 0:02:36]}  bxc6 {[%clk 0:02:48]} 11. Qf3 {[%clk 0:02:36]}  Qd7 {[%clk 0:02:47]} 12. Bg5 {[%clk 0:02:34]}  h6 {[%clk 0:02:46]} 13. Bh4 {[%clk 0:02:27]}  Rfe8 {[%clk 0:02:46]} 14. Rad1 {[%clk 0:02:25]}  Nh7 {[%clk 0:02:40]} 15. Bxe7 {[%clk 0:02:23]}  Rxe7 {[%clk 0:02:40]} 16. Ne4 {[%clk 0:02:14]}  Rae8 {[%clk 0:02:34]} 17. Nc5 {[%clk 0:02:07]}  Qc8 {[%clk 0:02:34]} 18. Nb3 {[%clk 0:02:07]}  c5 {[%clk 0:02:33]} 19. Na5 {[%clk 0:01:25]}  Re4 {[%clk 0:02:18]} 20. h3 {[%clk 0:00:52]}  Ng5 {[%clk 0:02:17]} 21. Qd3 {[%clk 0:00:42]}  Qxf5 {[%clk 0:02:05]} 22. Rde1 {[%clk 0:00:42]}  Nxh3+ {[%clk 0:01:49]} 23. Qxh3 {[%clk 0:00:41]}  Qxh3 {[%clk 0:01:47]} 24. Rxe4 {[%clk 0:00:37]}  Qd7 {[%clk 0:01:48]} 25. Rxe8+ {[%clk 0:00:35]}  Qxe8 {[%clk 0:01:49]} 26. Nc4 {[%clk 0:00:35]}  Qe2 {[%clk 0:01:45]} 27. Ne3 {[%clk 0:00:35]}  Qa6 {[%clk 0:01:45]} 28. a3 {[%clk 0:00:35]}  Qb5 {[%clk 0:01:46]} 29. b3 {[%clk 0:00:35]}  c6 {[%clk 0:01:45]} 30. a4 {[%clk 0:00:36]}  Qe2 {[%clk 0:01:44]} 31. c4 {[%clk 0:00:22]}  Qb2 {[%clk 0:01:39]} 32. Rd1 {[%clk 0:00:22]}  Qxb3 {[%clk 0:01:40]} 33. Rxd6 {[%clk 0:00:23]}  Qxa4 {[%clk 0:01:40]} 34. Rd7 {[%clk 0:00:19]}  Qa1+ {[%clk 0:01:38]} 35. Kh2 {[%clk 0:00:20]}  Qe5+ {[%clk 0:01:39]} 36. g3 {[%clk 0:00:20]}  a5 {[%clk 0:01:37]} 37. Ra7 {[%clk 0:00:20]}  Qb2 {[%clk 0:01:32]} 38. Kg2 {[%clk 0:00:20]}  Qb4 {[%clk 0:01:28]} 39. Ra8+ {[%clk 0:00:20]}  Kh7 {[%clk 0:01:28]} 40. Ra7 {[%clk 0:00:21]}  Kg6 {[%clk 0:01:27]} 41. Rc7 {[%clk 0:00:21]}  Qb6 {[%clk 0:01:26]} 42. Rd7 {[%clk 0:00:22]}  a4 {[%clk 0:01:22]} 43. Rd6+ {[%clk 0:00:22]}  f6 {[%clk 0:01:23]} 44. Nd5 {[%clk 0:00:22]}  Qb7 {[%clk 0:01:20]} 45. Nf4+ {[%clk 0:00:22]}  Kf7 {[%clk 0:01:19]} 46. Ne6 {[%clk 0:00:20]}  Qe7 {[%clk 0:01:15]} 47. Nd8+ {[%clk 0:00:17]}  Kg6 {[%clk 0:01:15]} 48. Rd2 {[%clk 0:00:16]}  a3 {[%clk 0:01:14]} 49. f3 {[%clk 0:00:16]}  a2 {[%clk 0:01:13]} 50. Nxc6 {[%clk 0:00:14]}  Qc7 {[%clk 0:01:11]} 51. Rxa2 {[%clk 0:00:14]}  Qxc6 {[%clk 0:01:11]} 52. Ra5 {[%clk 0:00:13]}  Qd6 {[%clk 0:01:11]} 53. Rb5 {[%clk 0:00:13]}  Qd4 {[%clk 0:01:11]} 54. Kh3 {[%clk 0:00:14]}  Qxc4 {[%clk 0:01:12]} 0-1


[Site "https://www.chess.com"]